bitfinex/quotes_ETHUSD_20250505
["timestamp","ask_amount","ask_price","bid_price","bid_amount"]
[1746484095888,5.48219061,1824.1,1823.8,0.7629]
[1746484096761,10.96457405,1824.1,1823.8,0.7629]
[1746484096969,5.48219061,1824.1,1823.8,0.7629]
[1746484098001,5.48246664,1824.0,1823.8,0.7629]
[1746484098216,10.96463831,1824.1,1823.8,0.7629]
[1746484098364,5.48219061,1824.1,1823.8,0.7629]
[1746484098565,5.48254325,1824.0,1823.7,5.3976]
[1746484098981,5.48305735,1823.8,1823.7,5.3976]
[1746484099294,5.48289278,1823.9,1823.5,9.91489266]
[1746484099494,5.48289278,1823.9,1823.6,5.48363844]
[1746484100270,5.48289278,1823.9,1823.7,0.7569]
[1746484100660,10.96530006,1824.0,1823.7,0.7569]
[1746484100864,10.96530006,1824.0,1823.7,0.0919]
[1746484101093,6.57911446,1824.0,1823.7,0.0919]
[1746484101402,12.06184628,1824.0,1823.7,0.0919]
[1746484101715,5.48278184,1823.9,1823.7,0.0919]
[1746484105324,5.48278184,1823.9,1823.6,5.48363844]
[1746484105521,5.48278184,1823.9,1823.5,9.89768698]
[1746484106830,5.48278184,1823.9,1823.5,15.38145569]
[1746484107128,5.48278184,1823.9,1823.5,9.89763631]
[1746484107327,5.48278184,1823.9,1823.5,15.38138297]
[1746484107692,5.48278184,1823.9,1823.5,9.89761426]
[1746484108715,5.48307769,1823.8,1823.5,6.24004666]
[1746484109023,5.48348944,1823.7,1823.5,0.7563]
[1746484109224,5.48316898,1823.8,1823.5,0.7563]
[1746484109429,5.48316898,1823.8,1823.5,6.24023475]
[1746484109832,5.48316898,1823.8,1823.5,0.7563]
[1746484111649,5.48316898,1823.8,1823.5,6.24021363]
[1746484112255,5.48316898,1823.8,1823.5,0.7563]
[1746484112457,6.70704631,1823.8,1823.5,0.7563]
[1746484112628,6.70704631,1823.8,1823.5,6.2402344]
[1746484114426,6.70704631,1823.8,1823.5,0.7563]
[1746484115149,6.70704631,1823.8,1823.5,6.24025558]
[1746484118056,1.22387733,1823.8,1823.5,6.24010222]
[1746484118258,5.48308645,1823.8,1823.5,6.24010222]
[1746484119068,6.57914438,1824.0,1823.5,6.24008416]
[1746484119263,6.57914438,1824.0,1823.6,5.48357368]
[1746484119619,5.48279177,1823.9,1823.6,5.48357368]
[1746484120559,12.06188636,1824.0,1823.6,5.48352465]
[1746484120756,1.20618864,1823.9,1823.6,5.48352465]
[1746484120918,5.48276187,1823.9,1823.6,5.48352465]
[1746484121378,12.06186501,1824.0,1823.6,5.48352465]
[1746484121555,6.57914438,1824.0,1823.6,5.48348496]
[1746484121757,6.57914438,1824.0,1823.6,5.48344361]
[1746484121923,6.57914438,1824.0,1823.7,6.28160316]
[1746484122319,6.57914438,1824.0,1823.7,0.7983]
[1746484122633,6.57914438,1824.0,1823.7,6.28165238]
[1746484123861,1.09653001,1824.0,1823.7,6.28165238]
[1746484124171,10.24,1824.1,1823.8,5.48283632]
[1746484124946,10.24,1824.1,1823.8,10.96574659]
[1746484125167,10.24,1824.1,1823.9,5.48273149]
[1746484125384,10.24,1824.1,1823.9,5.482542]
[1746484125700,10.24,1824.1,1824.0,6.23955614]
[1746484127501,10.24,1824.1,1824.0,0.7571]
[1746484128287,10.24,1824.1,1824.0,6.23955614]
[1746484128902,7.80359361,1824.4,1824.0,6.23955614]
[1746484129188,13.28511111,1824.4,1824.0,6.23955614]
[1746484129350,13.28514752,1824.4,1824.0,6.23955614]
[1746484129551,7.80359361,1824.4,1824.0,6.23955614]
[1746484130578,13.28510907,1824.4,1824.0,6.23939641]
[1746484130779,14.61363942,1824.4,1824.0,6.23939641]
[1746484131090,5.48156339,1824.3,1824.0,6.23939641]
[1746484133296,5.48156339,1824.3,1824.0,0.7571]
[1746484134467,5.48156339,1824.3,1824.0,6.23945647]
[1746484134666,9.13210452,1824.4,1824.0,11.72173279]
[1746484134880,9.13210452,1824.4,1824.0,6.23937632]
[1746484135594,5.48159023,1824.3,1824.0,6.23937632]
[1746484135905,5.48158709,1824.3,1824.0,6.23937632]
[1746484136706,9.13210452,1824.4,1824.0,6.23937632]
[1746484138066,8.46710452,1824.4,1824.0,6.23937632]
[1746484138669,7.29672129,1824.6,1824.0,0.7571]
[1746484139002,6.14579732,1824.6,1824.2,6.28896976]
[1746484139207,5.48079732,1824.6,1824.2,6.28896976]
[1746484139903,5.48079732,1824.6,1824.2,6.28895923]
[1746484140305,5.48079732,1824.6,1824.2,11.77063389]
[1746484140522,5.48079732,1824.6,1824.3,5.48152818]
[1746484140690,5.48079732,1824.6,1824.2,6.28898755]
[1746484140894,5.48079732,1824.6,1824.2,7.46608318]
[1746484141439,10.96167277,1824.6,1824.2,7.46608318]
[1746484141635,5.48079732,1824.6,1824.2,7.46608318]
[1746484142750,5.48079732,1824.6,1824.2,12.94774724]
[1746484143038,5.48079732,1824.6,1824.2,7.46603538]
[1746484145731,5.48079732,1824.6,1824.3,5.48151736]
[1746484146539,5.48079732,1824.6,1824.2,12.94787256]
[1746484146743,5.48079732,1824.6,1824.2,7.46603934]
[1746484146943,5.48079732,1824.6,1824.2,12.94769468]
[1746484147243,5.48079732,1824.6,1824.2,6.28894371]
[1746484147642,5.48079732,1824.6,1824.2,11.77058939]
[1746484147822,5.48079732,1824.6,1824.3,5.48151875]
[1746484149556,7.13856998,1824.4,1823.8,5.419]
[1746484149725,0.665,1824.5,1823.8,10.90175786]
[1746484149726,0.665,1824.2,1823.8,10.90175786]
[1746484149925,0.665,1824.2,1823.9,5.48267188]
[1746484150649,0.665,1824.2,1823.9,10.96521527]
[1746484150853,0.665,1824.2,1823.9,5.48254339]
[1746484151556,5.48255637,1824.0,1823.8,5.419]
[1746484151745,5.48233493,1824.1,1823.8,4.62]
[1746484151942,6.26278959,1824.1,1823.8,4.62]
[1746484153159,6.26278959,1824.1,1823.8,10.10305728]
[1746484153452,6.26278959,1824.1,1823.8,4.62]
[1746484153626,6.262727,1824.1,1823.8,4.62]
[1746484153836,5.48254256,1824.0,1823.8,4.62]
[1746484154447,0.78045466,1824.1,1823.8,4.62]
[1746484154657,6.26280418,1824.1,1823.8,4.62]
[1746484154822,0.62628042,1824.0,1823.8,4.62]
[1746484157262,0.62628042,1824.0,1823.8,10.10305458]
[1746484158258,0.665,1824.2,1823.9,5.4825624]
[1746484158859,5.48173862,1824.3,1823.9,10.96510409]
[1746484159356,5.48173862,1824.3,1824.0,5.48244671]
[1746484160739,6.14644007,1824.4,1824.0,5.48244671]
[1746484160934,5.48157736,1824.3,1824.0,5.48244671]
[1746484161143,6.14644007,1824.4,1824.0,10.96469284]
[1746484161344,7.30919472,1824.4,1824.0,6.24344613]
[1746484161624,0.665,1824.6,1824.1,0.05481901]
[1746484161839,6.14567682,1824.6,1824.2,5.48157242]
[1746484162238,15.72051985,1824.7,1824.3,6.2618004]
[1746484162444,15.72051985,1824.7,1824.4,5.4812306]
[1746484162653,5.48051985,1824.7,1824.4,5.4812306]
[1746484162855,6.14522983,1824.8,1824.4,5.4812306]
[1746484162856,6.14524166,1824.8,1824.4,5.48114593]
[1746484163038,11.62558029,1824.8,1824.3,6.26186997]
[1746484163243,11.62558029,1824.8,1824.4,5.48112587]
[1746484163567,6.14524166,1824.8,1824.4,5.48112587]
[1746484164466,5.4803673,1824.7,1824.4,5.48112587]
[1746484166137,6.14524166,1824.8,1824.4,5.48112587]
[1746484166333,6.14524166,1824.8,1824.4,5.48108424]
[1746484166534,6.14524166,1824.8,1824.5,10.96177351]
[1746484166535,0.665,1824.8,1824.5,10.96177351]
[1746484166742,22.26947344,1825.0,1824.6,6.29785542]
[1746484166986,5.47982614,1824.9,1824.6,6.29785542]
[1746484167198,5.47982614,1824.9,1824.6,0.8173]
[1746484167476,5.47982614,1824.9,1824.6,6.92774591]
[1746484168987,16.38466359,1825.0,1824.6,6.92774591]
[1746484170194,6.14401007,1825.2,1824.6,8.37652766]
[1746484170345,5.47911624,1825.2,1824.8,5.4798018]
[1746484170539,5.47911624,1825.2,1824.8,6.65121307]
[1746484170540,5.47916456,1825.1,1824.8,6.65121307]
[1746484171335,5.47916456,1825.1,1824.7,6.23443897]
[1746484171336,5.47946609,1825.0,1824.7,6.23443897]
[1746484171535,5.47936526,1825.1,1824.7,6.23443897]
[1746484171773,5.47956595,1825.0,1824.7,0.7541]
[1746484172482,5.47936526,1825.1,1824.7,6.23435451]
[1746484172483,5.47934939,1825.1,1824.7,6.23435451]
[1746484172695,5.47934939,1825.1,1824.8,6.10343734]
[1746484172990,5.47934939,1825.1,1824.8,0.62343545]
[1746484173586,10.95877795,1825.1,1824.8,0.62343545]
[1746484173787,5.47934939,1825.1,1824.7,6.23426403]
[1746484174481,5.47934939,1825.1,1824.8,5.48002328]
[1746484174695,5.47906699,1825.2,1824.9,0.7541]
[1746484175047,5.47906699,1825.2,1824.9,6.23385118]
[1746484175256,5.47906699,1825.2,1824.9,7.40522257]
[1746484179050,16.38345227,1825.4,1825.0,5.4792756]
[1746484179249,6.14345227,1825.4,1825.0,5.4792756]
[1746484179473,6.14345227,1825.4,1825.0,10.08723418]
[1746484180289,6.14345227,1825.4,1825.0,15.56650706]
[1746484180452,6.14345227,1825.4,1825.0,17.3157049]
[1746484180665,5.47810372,1825.5,1825.1,6.26758072]
[1746484180851,5.47810372,1825.5,1825.2,5.47876746]
[1746484181248,5.47789092,1825.6,1825.2,5.4785851]
[1746484181484,5.47789092,1825.6,1825.2,6.65320427]
[1746484181649,5.4779631,1825.5,1825.2,6.65320427]
[1746484182161,5.47785375,1825.6,1825.2,12.1318762]
[1746484182370,5.47785375,1825.6,1825.3,5.47849821]
[1746484182575,6.14256349,1825.7,1825.3,5.47849821]
[1746484182777,6.14220618,1825.8,1825.4,6.2666427]
[1746484183049,5.47736087,1825.7,1825.4,10.8736427]
[1746484183447,6.14220618,1825.8,1825.4,10.8736427]
[1746484183647,5.47735254,1825.7,1825.4,10.8736427]
[1746484183987,5.47735254,1825.7,1825.4,12.27452376]
[1746484184455,11.61954786,1825.8,1825.4,12.27452376]
[1746484184789,11.61951688,1825.8,1825.4,12.27452376]
[1746484184995,5.47737422,1825.7,1825.4,12.27452376]
[1746484187808,11.6195374,1825.8,1825.4,12.27452376]
[1746484187955,5.47720618,1825.8,1825.5,1.17137139]
[1746484188292,5.47718684,1825.8,1825.5,1.17137139]
[1746484188687,10.95448616,1825.8,1825.5,1.17137139]
[1746484188986,5.47737448,1825.7,1825.5,1.17137139]
[1746484189205,5.47736238,1825.7,1825.5,1.17137139]
[1746484189509,5.47745619,1825.7,1825.5,1.17137139]
[1746484189808,5.47745619,1825.7,1825.4,10.87383422]
[1746484190322,5.47745619,1825.7,1825.4,5.3956]
[1746484190623,5.47805394,1825.5,1825.3,4.602]
[1746484190773,5.47825134,1825.4,1825.3,4.602]
[1746484190974,5.47805394,1825.5,1825.3,4.602]
[1746484191213,5.47786308,1825.6,1825.3,10.08041721]
[1746484191799,11.62000241,1825.7,1825.3,10.08041721]
[1746484192111,6.14239222,1825.7,1825.3,10.08041721]
[1746484192275,11.61999951,1825.7,1825.3,10.08041721]
[1746484192474,5.47768618,1825.6,1825.3,4.602]
[1746484195215,5.47803871,1825.5,1825.3,4.602]
[1746484196659,1.16200784,1825.6,1825.3,4.602]
[1746484196828,6.14250022,1825.7,1825.3,10.08030881]
[1746484197031,5.47765166,1825.6,1825.3,10.08030881]
[1746484197433,10.95553502,1825.6,1825.3,4.602]
[1746484197618,5.47765166,1825.6,1825.3,4.602]
[1746484199765,5.47765166,1825.6,1825.3,10.08053536]
[1746484199933,5.47765495,1825.6,1825.3,10.08053536]
[1746484200259,6.1425185,1825.7,1825.3,10.08053536]
[1746484200566,16.3818563,1825.9,1825.5,5.47784892]
[1746484200864,5.47738572,1825.7,1825.4,6.30425134]
[1746484201617,16.38183713,1825.9,1825.4,6.30407856]
[1746484201860,16.38132584,1826.1,1825.6,5.47755766]
[1746484202157,16.38132584,1826.1,1825.7,5.4114]
[1746484202158,5.47654376,1826.0,1825.7,5.4114]
[1746484202356,10.905,1826.6,1825.9,2.32041328]
[1746484202558,23.59857917,1827.0,1825.9,2.32041328]
[1746484202559,0.665,1827.0,1826.4,0.8094]
[1746484202733,5.47330314,1827.1,1826.7,5.4742694]
[1746484202927,0.54733031,1827.0,1826.7,5.47422369]
[1746484203248,5.471789,1827.6,1827.1,5.4729225]
[1746484203448,5.471789,1827.6,1827.2,4.602]
[1746484203771,5.47211888,1827.5,1827.2,4.602]
[1746484204121,5.47236571,1827.4,1827.2,4.602]
[1746484204329,2.98541328,1827.6,1827.2,5.4114]
[1746484204330,5.47177667,1827.6,1827.2,5.4114]
[1746484204531,15.71146302,1827.7,1827.3,0.05472487]
[1746484204774,5.47181322,1827.6,1827.2,5.95254]
[1746484205076,15.71150765,1827.7,1827.3,0.05471908]
[1746484205227,10.24,1828.1,1827.2,5.4114]
[1746484205424,5.47089657,1827.9,1827.4,5.47225308]
[1746484205620,1.09415318,1827.9,1827.5,0.05471597]
[1746484205837,5.47060902,1828.0,1827.6,4.602]
[1746484206364,5.47018967,1828.1,1827.7,0.7987]
[1746484206530,10.905,1828.2,1827.7,0.7987]
[1746484206731,10.24,1828.2,1827.7,0.7987]
[1746484207070,15.70986159,1828.2,1827.7,0.7987]
[1746484207284,1.57098616,1828.1,1827.7,0.7987]
[1746484207632,7.0412804,1828.1,1827.7,0.7987]
[1746484207941,1.57098616,1828.1,1827.7,0.7987]
[1746484208356,7.04115552,1828.1,1827.7,0.7987]
[1746484208530,8.47005358,1828.2,1827.7,0.7987]
[1746484208725,3.0,1828.2,1827.7,6.27003046]
[1746484208954,3.0,1828.2,1827.7,0.7987]
[1746484209155,8.4699917,1828.2,1827.7,6.27005671]
[1746484209357,5.46959712,1828.3,1827.8,5.47092083]
[1746484209674,3.84551099,1828.3,1827.8,5.52558362]
[1746484209978,10.24,1828.5,1828.0,5.47023139]
[1746484210137,10.905,1828.7,1828.1,10.06905828]
[1746484210468,2.32041328,1828.5,1828.1,10.06905153]
[1746484210774,2.32041328,1828.6,1828.1,10.87823524]
[1746484211077,9.65850965,1828.6,1828.1,10.87823524]
[1746484211234,5.46880102,1828.6,1828.2,5.4697561]
[1746484211433,2.32041328,1828.5,1828.2,5.4697561]
[1746484211838,5.46880102,1828.6,1828.1,10.82360664]
[1746484212141,5.46880102,1828.6,1828.2,5.4698131]
[1746484212542,5.46880102,1828.6,1828.2,5.46983671]
[1746484212744,10.29024135,1828.6,1828.1,10.82363519]
[1746484213474,5.46927894,1828.4,1828.1,0.7546]
[1746484213660,5.46937552,1828.4,1828.2,4.598]
[1746484214352,9.74531717,1828.5,1828.2,4.598]
[1746484214551,1.45666621,1828.5,1828.2,10.06782096]
[1746484214755,8.46880866,1828.6,1828.2,10.06782096]
[1746484215482,0.4134105,1828.8,1828.3,0.8201]
[1746484215684,0.10687715,1828.5,1828.3,0.8201]
[1746484215883,0.10687715,1828.5,1828.4,4.597]
[1746484216053,5.46848217,1828.7,1828.4,4.597]
[1746484216579,5.46842373,1828.7,1828.4,4.597]
[1746484216875,5.46842373,1828.7,1828.1,0.8201]
[1746484216876,5.46926274,1828.4,1828.1,0.8201]
[1746484217176,5.46926274,1828.4,1828.1,5.4171]
[1746484217351,5.46926274,1828.4,1828.0,10.94046462]
[1746484217352,4.27615809,1828.7,1828.2,0.8201]
[1746484217548,5.46913217,1828.5,1828.2,5.4171]
[1746484217749,5.46883378,1828.6,1828.2,5.4171]
[1746484217967,5.46877601,1828.6,1828.2,10.88675451]
[1746484218185,5.46913293,1828.5,1828.2,5.4171]
[1746484218356,5.46913293,1828.5,1828.2,10.8869505]
[1746484218682,5.46877601,1828.6,1828.2,10.8869505]
[1746484218878,5.46877601,1828.6,1828.2,10.88677651]
[1746484219377,5.88162933,1828.8,1828.4,5.46909596]
[1746484219586,5.88162933,1828.8,1828.5,6.28903299]
[1746484219891,5.88162933,1828.8,1828.5,0.8201]
[1746484220189,0.4134105,1828.8,1828.6,10.09952432]
[1746484221290,0.4134105,1828.8,1828.7,5.4683655]
[1746484221451,0.51608291,1828.8,1828.7,7.82394626]
[1746484221645,0.4134105,1828.8,1828.7,7.82394626]
[1746484222390,0.4134105,1828.8,1828.7,7.87862193]
[1746484223485,5.46692387,1829.2,1828.8,5.46781926]
[1746484223787,5.46692387,1829.2,1828.9,5.46776642]
[1746484224079,4.27615809,1829.2,1828.9,4.63]
[1746484224253,5.46806649,1828.8,1828.7,0.7988]
[1746484224456,5.46866223,1828.7,1828.6,4.63]
[1746484224660,5.46916143,1828.5,1828.3,0.7782]
[1746484224859,5.46926274,1828.4,1828.0,0.7622]
[1746484225061,5.46970883,1828.3,1828.0,11.48592781]
[1746484225269,5.46935838,1828.4,1828.1,5.4701479]
[1746484225543,5.46906267,1828.5,1828.1,5.4701479]
[1746484225758,5.46926325,1828.4,1828.0,11.48592781]
[1746484225960,5.4694905,1828.4,1828.0,10.86264182]
[1746484226161,4.27615809,1828.6,1828.0,0.7622]
[1746484226162,5.46986315,1828.2,1828.0,0.7622]
[1746484226357,5.46960474,1828.3,1828.0,5.3922]
[1746484227067,5.47008916,1828.2,1828.0,5.3922]
[1746484227584,5.47075879,1827.9,1827.5,0.8094]
[1746484227786,5.47165681,1827.6,1827.5,0.8094]
[1746484228283,5.471475,1827.7,1827.5,0.8094]
[1746484228284,5.47154432,1827.7,1827.5,0.8094]
[1746484228669,5.4706241,1828.0,1827.5,0.8094]
[1746484228869,5.47090145,1827.9,1827.5,6.2811999]
[1746484229047,5.47090145,1827.9,1827.5,7.46200792]
[1746484230091,10.94191703,1827.9,1827.5,7.46200792]
[1746484230249,5.47107577,1827.8,1827.5,7.46200792]
[1746484230580,5.47107577,1827.8,1827.5,1.99020802]
[1746484230760,5.47140813,1827.7,1827.5,1.99020802]
[1746484230954,5.47107577,1827.8,1827.5,0.8094]
[1746484231348,5.47065339,1828.0,1827.6,5.47156048]
[1746484231956,5.47065339,1828.0,1827.6,5.5262159]
[1746484232488,5.47065339,1828.0,1827.6,5.4715059]
[1746484232689,5.47076092,1827.9,1827.6,5.4715059]
[1746484232865,5.47060124,1828.0,1827.6,6.64677867]
[1746484233363,10.94134466,1828.0,1827.6,6.64677867]
[1746484233577,5.47060124,1828.0,1827.6,6.64673397]
[1746484233890,5.47060124,1828.0,1827.6,6.70144398]
[1746484235603,5.47060124,1828.0,1827.6,6.64673397]
[1746484235784,5.47088182,1827.9,1827.6,1.17527277]
[1746484236096,5.47060124,1828.0,1827.6,6.70153674]
[1746484236484,5.47045951,1828.0,1827.5,0.8094]
[1746484236808,5.47191218,1827.6,1827.4,4.631]
[1746484237100,5.47191218,1827.6,1827.3,4.631]
[1746484237262,5.47315417,1827.1,1827.0,0.7648]
[1746484237463,5.47315417,1827.1,1827.0,5.3958]
[1746484237697,5.47315417,1827.1,1827.0,5.93538]
[1746484237914,5.47315417,1827.1,1827.0,1.30438]
[1746484238398,5.47271341,1827.3,1827.0,1.30438]
[1746484240567,5.4734055,1827.1,1826.8,0.7973]
[1746484240901,5.47358462,1827.0,1826.7,4.631]
[1746484241608,5.47336004,1827.1,1826.7,10.10534203]
[1746484241972,5.47324912,1827.1,1826.7,10.10534203]
[1746484242206,5.47324912,1827.1,1826.8,1.0105342]
[1746484243873,10.94665718,1827.1,1826.8,1.0105342]
[1746484244174,5.47342383,1827.1,1826.8,5.47403527]
[1746484244376,5.47306185,1827.2,1826.8,5.52877238]
[1746484244569,5.4731705,1827.1,1826.8,5.47403527]
[1746484245582,5.4731705,1827.1,1826.7,10.10534203]
[1746484245983,5.4731705,1827.1,1826.7,10.10514123]
[1746484246184,5.4731705,1827.1,1826.7,11.74283578]
[1746484247078,5.47346077,1827.0,1826.7,11.74283578]
[1746484247407,5.4731705,1827.1,1826.7,6.26869455]
[1746484247573,5.47358694,1827.0,1826.7,6.26869455]
[1746484248397,5.47358694,1827.0,1826.7,11.74303284]
[1746484248722,10.94655728,1827.1,1826.7,11.74303284]
[1746484248883,5.4731705,1827.1,1826.7,11.74303284]
[1746484249711,5.4731705,1827.1,1826.7,11.74286196]
[1746484249903,5.4731705,1827.1,1826.8,1.1742862]
[1746484250409,5.4731705,1827.1,1826.8,6.64824627]
[1746484250910,5.47302294,1827.2,1826.8,6.64824627]
[1746484251311,10.94610266,1827.2,1826.8,6.64824627]
[1746484251517,5.47276578,1827.3,1826.9,6.25460871]
[1746484251719,5.47276578,1827.3,1826.9,7.00296414]
[1746484251901,5.47229577,1827.4,1827.0,5.47327589]
[1746484252401,10.94478812,1827.4,1827.0,5.47327589]
[1746484252912,5.4726406,1827.3,1827.0,5.47327589]
[1746484253142,5.4726406,1827.3,1826.9,12.47650743]
[1746484253436,15.71209672,1827.5,1827.1,5.4730251]
[1746484253642,5.47209672,1827.5,1827.2,0.781]
[1746484254012,3.0,1827.6,1827.0,2.02862299]
[1746484254213,5.47297953,1827.2,1827.0,0.781]
[1746484254913,5.47289058,1827.2,1827.0,0.781]
[1746484255111,5.4727576,1827.3,1827.0,0.781]
[1746484255342,5.47289283,1827.2,1827.0,0.781]
[1746484257645,5.4727576,1827.3,1827.0,6.25440502]
[1746484257807,6.13743712,1827.4,1827.0,1.9592887]
[1746484258009,5.47298415,1827.2,1827.0,0.781]
[1746484258527,5.47281375,1827.3,1827.0,0.781]
[1746484258910,10.94561135,1827.3,1827.0,0.781]
[1746484259112,5.47287817,1827.2,1827.0,0.781]
[1746484259314,10.94602722,1827.2,1827.0,0.781]
[1746484259812,5.47287817,1827.2,1827.0,0.781]
[1746484260013,10.94598208,1827.2,1827.0,0.781]
[1746484260237,5.47315417,1827.1,1827.0,0.781]
[1746484260661,5.47315417,1827.1,1826.8,7.45376663]
[1746484261465,5.47315417,1827.1,1826.8,1.9798862]
[1746484261666,5.47315417,1827.1,1826.8,7.45390806]
[1746484263570,5.47287817,1827.2,1826.8,7.45390806]
[1746484263755,5.47264265,1827.3,1827.0,5.47336807]
[1746484263961,5.47264265,1827.3,1826.9,6.21893953]
[1746484264138,5.47264265,1827.3,1826.9,6.27367037]
[1746484264338,5.47264265,1827.3,1827.0,5.47342092]
[1746484264672,10.94433037,1827.5,1827.1,6.27866165]
[1746484264872,5.4721251,1827.5,1827.1,11.75170083]
[1746484265174,5.4721251,1827.5,1827.1,11.75160712]
[1746484265359,5.4721251,1827.5,1827.1,6.27856794]
[1746484265565,5.4721251,1827.5,1827.2,5.4728087]
[1746484265775,5.4721251,1827.5,1827.1,5.4686]
[1746484265982,5.47251493,1827.4,1827.1,5.4686]
[1746484266686,5.47285464,1827.2,1827.1,4.663]
[1746484267980,5.47255942,1827.3,1827.1,4.663]
[1746484268678,10.94538914,1827.3,1827.1,4.663]
[1746484268879,5.47255942,1827.3,1827.1,4.663]
[1746484270460,5.47285464,1827.2,1827.1,4.663]
[1746484270992,5.47255942,1827.3,1827.1,4.663]
[1746484271193,6.68511058,1827.2,1826.8,4.663]
[1746484271349,5.47326278,1827.1,1826.8,4.663]
[1746484271821,5.4735445,1827.0,1826.7,5.4594]
[1746484271987,10.94723638,1827.0,1826.7,5.4594]
[1746484272151,5.4735445,1827.0,1826.7,5.4594]
[1746484272553,5.47333666,1827.1,1826.7,10.93347842]
[1746484272758,5.47305012,1827.2,1826.8,6.56724798]
[1746484273291,5.47315928,1827.1,1826.8,6.56724798]
[1746484273891,5.47315928,1827.1,1826.8,1.09334784]
[1746484274195,5.47315928,1827.1,1826.7,10.93347842]
[1746484274901,5.47300589,1827.2,1826.8,5.4738653]
[1746484275067,5.47300589,1827.2,1826.8,5.47384217]
[1746484275396,10.94544951,1827.3,1827.0,0.7964]
[1746484275811,5.47266114,1827.3,1827.0,0.7964]
[1746484277808,5.47281749,1827.3,1827.0,0.7964]
[1746484278013,10.94624887,1827.2,1827.0,0.7964]
[1746484278378,5.47315417,1827.1,1826.8,6.29433838]
[1746484278574,5.47323014,1827.1,1826.8,7.93748906]
[1746484279616,5.47358368,1827.0,1826.8,0.8204]
[1746484281494,5.47375335,1826.9,1826.7,4.663]
[1746484283533,5.47364009,1827.0,1826.7,4.663]
[1746484283823,5.47364009,1827.0,1826.7,10.13720034]
[1746484284004,5.47364009,1827.0,1826.7,10.19193691]
[1746484284208,5.47364009,1827.0,1826.7,11.7821496]
[1746484284407,5.47364009,1827.0,1826.7,11.7822872]
[1746484285435,5.47298857,1827.2,1826.8,0.8035]
[1746484285585,5.47274075,1827.3,1826.9,5.52840389]
[1746484285901,5.47286675,1827.2,1826.9,6.65424915]
[1746484287322,15.71209875,1827.5,1827.1,5.47315097]
[1746484287627,5.47264881,1827.3,1827.0,0.8035]
[1746484287829,5.47227555,1827.4,1827.0,6.27689618]
[1746484288283,5.47227555,1827.4,1827.0,11.75023144]
[1746484288488,5.47227555,1827.4,1827.0,13.50821276]
[1746484288720,5.47227555,1827.4,1827.0,8.03481658]
[1746484288939,5.47104056,1827.9,1827.5,5.47192683]
[1746484289221,5.47069847,1828.0,1827.5,5.52645899]
[1746484289524,10.94145316,1828.0,1827.6,5.4716421]
[1746484289729,5.47069847,1828.0,1827.6,5.4716421]
[1746484289890,6.08379847,1828.1,1827.7,5.4712561]
[1746484290090,6.08379847,1828.1,1827.7,0.8035]
[1746484290291,5.47055664,1828.0,1827.7,0.8035]
[1746484291629,5.47078055,1827.9,1827.7,0.8035]
[1746484291862,5.47078055,1827.9,1827.3,3.6575676]
[1746484291863,5.47225566,1827.4,1827.3,3.6575676]
[1746484292620,5.47208122,1827.5,1827.3,3.6575676]
[1746484293034,6.13646008,1827.7,1827.4,0.8294]
[1746484293238,5.47146008,1827.7,1827.4,0.8294]
[1746484294157,10.94307132,1827.7,1827.4,0.8294]
[1746484294355,5.47146008,1827.7,1827.4,0.8294]
[1746484294520,5.47173001,1827.6,1827.4,0.8294]
[1746484296957,5.47123521,1827.8,1827.4,0.8294]
[1746484297153,1.75913372,1827.9,1827.5,5.47181746]
[1746484297154,5.47085533,1827.9,1827.5,5.47181746]
[1746484297354,5.47085533,1827.9,1827.5,5.47178801]
[1746484298058,5.47315417,1827.1,1827.0,5.402]
[1746484298259,5.47315417,1827.1,1827.0,4.649]
[1746484298464,5.47315417,1827.1,1826.8,4.4105676]
[1746484298767,0.665,1827.4,1827.0,3.6575676]
[1746484298924,6.13725652,1827.4,1827.0,3.6575676]
[1746484299248,6.13725652,1827.4,1827.0,9.49652962]
[1746484299558,6.13725652,1827.4,1827.0,9.49651265]
[1746484299559,0.665,1827.4,1827.0,9.49651265]
[1746484299757,6.13726828,1827.4,1827.0,9.49651265]
[1746484300953,6.13726828,1827.4,1827.0,5.83894505]
[1746484302061,6.13726828,1827.4,1827.0,11.3122017]
[1746484302225,6.13726828,1827.4,1827.0,5.8389444]
[1746484302555,0.665,1827.6,1827.1,1.33459444]
[1746484302760,6.13676977,1827.6,1827.2,5.47265777]
[1746484303054,11.60867337,1827.6,1827.2,5.47265777]
[1746484303255,6.13678165,1827.6,1827.2,5.47265777]
[1746484303461,6.13678165,1827.6,1827.2,10.94528126]
[1746484303864,6.13678165,1827.6,1827.2,5.47262349]
[1746484305362,8.4714542,1827.7,1827.3,5.4723949]
[1746484305677,5.47168269,1827.6,1827.3,5.4723949]
[1746484309785,5.47168269,1827.6,1827.2,11.29134345]
[1746484310281,5.47201869,1827.5,1827.2,11.29134345]
[1746484310576,5.47201869,1827.5,1827.2,5.81863038]
[1746484310779,5.47273028,1827.3,1826.9,5.4694]
[1746484310954,5.47273028,1827.3,1826.9,16.4166053]
[1746484311344,5.47273028,1827.3,1827.0,5.47341045]
[1746484311559,5.47243395,1827.4,1827.0,5.47341045]
[1746484312059,5.47240844,1827.4,1827.0,5.47341045]
[1746484313085,10.94494988,1827.4,1827.0,5.47341045]
[1746484313286,5.47240844,1827.4,1827.0,5.47341045]
[1746484314998,5.47240844,1827.4,1826.9,10.94296546]
[1746484315149,5.47264943,1827.3,1826.9,5.4694]
[1746484315349,5.47264943,1827.3,1826.9,10.94299934]
[1746484315692,5.47264943,1827.3,1826.9,16.41653877]
[1746484315864,5.47264943,1827.3,1826.9,10.94293943]
[1746484316564,0.665,1827.5,1826.9,10.94293943]
[1746484316884,5.47276387,1827.3,1826.9,10.94293943]
[1746484317093,10.94561598,1827.3,1826.9,10.94293943]
[1746484317388,5.47276387,1827.3,1826.9,10.94293943]
[1746484317680,5.47296331,1827.2,1826.9,10.94313597]
[1746484317884,5.47296331,1827.2,1826.9,5.4694]
[1746484318087,5.47320417,1827.1,1826.9,5.4694]
[1746484318456,5.47301369,1827.2,1826.9,5.4694]
[1746484318784,5.47331063,1827.1,1826.9,4.649]
[1746484319779,5.47391889,1826.9,1826.7,0.8277]
[1746484319957,5.473842,1826.9,1826.7,0.8277]
[1746484320155,5.47363374,1827.0,1826.7,0.8277]
[1746484320353,5.47363374,1827.0,1826.7,6.30201332]
[1746484320708,5.47401501,1826.9,1826.6,4.719]
[1746484320889,5.47366703,1827.0,1826.6,10.19342321]
[1746484321872,5.47376832,1826.9,1826.6,4.719]
[1746484322082,6.13876832,1826.9,1826.5,6.30246986]
[1746484324682,6.13876832,1826.9,1826.5,0.8277]
[1746484324683,5.47413839,1826.8,1826.5,0.8277]
[1746484325402,6.13876832,1826.9,1826.5,6.30263436]